Workbook

Sheet Info
B3: Go To Special illustration
B5: Posted on www.chandoo.org
B7: Written by Myles Arnott from Clarity Consultancy Services www.excelaudit.co.uk

Sheet Example
B1: SALES REPORT
C2: Jan | D2: Feb | E2: Mar | F2: Q1 | G2: Apr | H2: May | I2: Jun | J2: Q2 | K2: Jul | L2: Aug | M2: Sep | N2: Q3 | O2: Oct | P2: Nov | Q2: Dec | R2: Q4 | S2: Total
C3: Act | D3: Act | E3: Act | F3: Act | G3: Act | H3: Act | I3: Act | J3: Act | K3: Act | L3: Act | M3: Act | N3: Act | O3: Act | P3: For | Q3: For | R3: For
B4: North
B5: James Bourne | C5: 4521 | D5: 2863 | E5: 3802 | F5: 11925 | G5: =5498+200 -> 5698 | H5: =4487-350 -> 4137 | I5: =3362+U5 -> 3627 | J5: =SUM(G5:I5) -> 13462 | K5: 5100 | L5: 2280 | M5: 4207 | N5: =SUM(K5:M5) -> 11587 | O5: 3843 | P5: 3400 | Q5: 4200 | R5: =SUM(O5:Q5) -> 11443 | S5: =SUM(F5,J5,N5,R5) -> 48417 | U5: 265
B6: Chris Hewitt | C6: 3510 | D6: 4882 | E6: 3915 | F6: 12056 | G6: =4043-200 -> 3843 | H6: =1063+350 -> 1413 | I6: =4452-U5 -> 4187 | J6: =SUM(G6:I6) -> 9443 | K6: 2021 | L6: 1205 | M6: 2468 | N6: =SUM(K6:M6) -> 5694 | O6: 3825 | P6: 2500 | Q6: 3500 | R6: =SUM(O6:Q6) -> 9825 | S6: =SUM(F6,J6,N6,R6) -> 37018
B7: Pat Hill | C7: 5213 | D7: 4557 | E7: 2187 | F7: 10562 | G7: 1070 | H7: 4424 | I7: =1240+U7 -> 1240 | J7: =SUM(G7:I7) -> 6734 | K7: 4128 | L7: 2331 | M7: 3849 | N7: =SUM(K7:M7) -> 10308 | O7: 2928 | P7: 3000 | Q7: 5700 | R7: =SUM(O7:Q7) -> 11628 | S7: =SUM(F7,J7,N7,R7) -> 39232
B8: Jasmine Hunt | C8: 4175 | D8: 2681 | E8: 2257 | F8: 9112 | G8: 3588 | H8: 4666 | I8: =3666-U7 -> 3666 | J8: =SUM(G8:I8) -> 11920 | K8: 5410 | L8: 2719 | M8: 1934 | N8: =SUM(K8:M8) -> 10063 | O8: 1440 | P8: 2000 | Q8: 4700 | R8: =SUM(O8:Q8) -> 8140 | S8: =SUM(F8,J8,N8,R8) -> 39235
B9: ="Total "&B4 -> Total North | C9: =SUM(C5:C8) -> 17419 | D9: =SUM(D5:D8) -> 14983 | E9: 12161 | F9: 43655 | G9: 14199 | H9: 14640 | I9: 12720 | J9: =SUM(J5:J8) -> 41559 | K9: =SUM(K5:K8) -> 16659 | L9: =SUM(K5:K8) -> 16659 | M9: 12458 | N9: 37652 | O9: 12036 | P9: 10900 | Q9: 18100 | R9: 41036 | S9: 163902
B12: South
B13: Mark Watts | C13: 3400 | D13: 5329 | E13: 4734 | F13: =SUM(C13:E13) -> 13463 | G13: 1450 | H13: 4191 | I13: =3109+#REF! ->  | K13: 2097 | L13: 2354 | M13: 1837 | N13: =SUM(K13:M13) -> 6288 | O13: 3525 | P13: =AVERAGE(L13:M13,O13) -> 2572 | Q13: 3565.666667 | R13: =SUM(O13:Q13) -> 9662.666667 | S13: =SUM(F13,J13,N13,R13) -> 
B14: Jane Hill | C14: 3608 | D14: 4922 | E14: 4711 | F14: =SUM(C14:E14) -> 13241 | G14: 1463 | H14: 1204 | I14: 2342 | J14: =SUM(G14:I14) -> 5009 | K14: 3402 | L14: 5269 | M14: 3625 | N14: =SUM(K14:M14) -> 12296 | O14: 4125 | P14: 4339.666667 | Q14: 6753.555556 | R14: =SUM(O14:Q14) -> 15218.22222 | S14: =SUM(F14,J14,N14,R14) -> 45764.22222
B15: Sarah Allen | C15: 2303 | D15: 1253 | E15: 3651 | F15: =SUM(C15:E15) -> 7207 | G15: 4595 | H15: 2863 | I15: 3802 | J15: =SUM(G15:I15) -> 11260 | K15: 1478 | L15: 5410 | M15: 0 | N15: =SUM(K15:M15) -> 6888 | O15: 0 | P15: 1803.333333 | Q15: 2897.111111 | R15: =SUM(O15:Q15) -> 4700.444444 | S15: =SUM(F15,J15,N15,R15) -> 30055.44444
B16: Roger West | C16: 2359 | D16: 5273 | E16: 5438 | F16: =SUM(C16:E16) -> 13070 | G16: 2280 | H16: 4882 | I16: 3915 | J16: =SUM(G16:I16) -> 11077 | K16: 5498 | L16: 2806 | M16: 3061 | N16: =SUM(K16:M16) -> 11365 | O16: 4757 | P16: 3541.333333 | Q16: 5989.111111 | R16: =SUM(O16:Q16) -> 14287.44444 | S16: =SUM(F16,J16,N16,R16) -> 49799.44444
B17: Gill Smith | C17: 4487 | D17: 2638 | E17: 5100 | F17: =SUM(C17:E17) -> 12225 | G17: 1205 | H17: 4557 | I17: 2187 | J17: =SUM(G17:I17) -> 7949 | K17: 4043 | L17: 2252 | M17: 5076 | N17: =SUM(K17:M17) -> 11371 | O17: 1101 | P17: 2809.666667 | Q17: 6418.888889 | R17: =SUM(O17:Q17) -> 10329.55556 | S17: =SUM(F17,J17,N17,R17) -> 41874.55556
B18: ="Total "&B12 -> Total South | C18: =SUM(C13:C17) -> 16157 | D18: =SUM(D13:D17) -> 19415 | E18: 23634 | F18: 59206 | G18: 10993 | H18: 17697 | K18: 16518 | L18: 18091 | M18: 13599 | N18: 48208 | O18: 13508 | P18: 15066 | Q18: 25624.33333 | R18: 54198.33333
B21: Wales
B22: Gareth Jones | C22: 1063 | D22: 3362 | E22: 2021 | F22: =SUM(C22:E22) -> 4425 | G22: 4175 | H22: 2681 | I22: 2257 | J22: =SUM(G22:I22) -> 9113 | K22: 1070 | L22: 1722 | M22: 2176 | N22: =SUM(K22:M22) -> 4968 | O22: 3445 | P22: =AVERAGE(L22:M22,O22) -> 2447.666667 | Q22: 3197.222222 | R22: =SUM(O22:Q22) -> 9089.888889 | S22: =SUM(F22,J22,N22,R22) -> 27595.88889
B23: Tim Stevens | C23: 4424 | D23: 4452 | E23: 4128 | F23: =SUM(C23:E23) -> 8876 | G23: 3400 | H23: 5329 | I23: 4734 | J23: =SUM(G23:I23) -> 13463 | K23: 3588 | L23: 1732 | M23: 4534 | N23: =SUM(K23:M23) -> 9854 | O23: 5123 | P23: 3796.333333 | Q23: 6061.444444 | R23: =SUM(O23:Q23) -> 14980.77778 | S23: =SUM(F23,J23,N23,R23) -> 47173.77778
B24: Mike Payne | C24: 4666 | D24: 1240 | E24: 5410 | F24: =SUM(C24:E24) -> 5906 | G24: 3608 | H24: 4922 | I24: 4711 | J24: =SUM(G24:I24) -> 13241 | K24: 1450 | L24: 3910 | M24: 2705 | N24: =SUM(K24:M24) -> 8065 | O24: 2936 | P24: 3183.666667 | Q24: 4651.222222 | R24: =SUM(O24:Q24) -> 10770.88889 | S24: =SUM(F24,J24,N24,R24) -> 37982.88889
B25: ="Total "&B21 -> Total Wales | C25: =SUM(C23:C24) -> 9090 | D25: =SUM(D23:D24) -> 5692 | E25: =SUM(E23:E24) -> 0 | F25: 14782 | G25: 7008 | H25: 10251 | I25: 9445 | J25: 26704 | K25: 5038 | L25: 5642 | M25: 7239 | N25: 17919 | O25: 8059 | P25: 6980 | Q25: 10712.66667 | R25: 25751.66667 | S25: 85156.66667
B28: Scotland
B29: Simon Campbell | C29: 4191 | D29: 3109 | E29: 3402 | F29: =SUM(C29:E29) -> 10702 | G29: 2303 | H29: 1253 | I29: 3651 | J29: =SUM(G29:I29) -> 7207 | K29: 1463 | L29: 2845 | M29: 2303 | N29: =SUM(K29:M29) -> 6611 | O29: 4051 | P29: =AVERAGE(L29:M29,O29) -> 3066.333333 | Q29: =AVERAGE(M29:N29,P29) -> 3993.444444 | R29: =SUM(O29:Q29) -> 11110.77778 | S29: =SUM(F29,J29,N29,R29) -> 35630.77778
B30: Glen Wilks | C30: 1204 | D30: 2342 | E30: 1478 | F30: =SUM(C30:E30) -> 5024 | G30: 2359 | H30: 5273 | I30: 5438 | J30: =SUM(G30:I30) -> 13070 | K30: 4595 | L30: 2857 | M30: 5138 | N30: =SUM(K30:M30) -> 12590 | O30: 3261 | P30: =AVERAGE(L30:M30,O30) -> 3752 | Q30: =AVERAGE(M30:N30,P30) -> 7160 | R30: =SUM(O30:Q30) -> 14173 | S30: =SUM(F30,J30,N30,R30) -> 44857
B31: ="Total "&B28 -> Total Scotland | C31: =SUM(C29:C30) -> 5395 | D31: =SUM(D29:D30) -> 5451 | E31: 4880 | F31: 15726 | G31: 4662 | H31: 6526 | I31: 9089 | J31: 20277 | K31: 6058 | L31: 5702 | M31: 7441 | N31: 19201 | O31: 7312 | P31: 6818.333333 | Q31: 11153.44444 | R31: 25283.77778 | S31: 80487.77778
B33: ="Total" -> Total | C33: =SUM(C9,C18,C25,C31) -> 48061 | D33: =SUM(D9,D18,D25,D31) -> 45541 | E33: 40675 | F33: 133369 | G33: 36862 | H33: 49114 | K33: 44273 | L33: 46094 | M33: 40737 | N33: 122980 | O33: 40915 | P33: 39764.33333 | Q33: 65590.44444 | R33: 146269.7778 | S33: =SUM(S9,S18,S25,S31) -> 
B36: Actuals: | C36: TRUE | D36: TRUE | E36: TRUE | F36: =F3="Act" -> TRUE | G36: =G3="Act" -> TRUE | H36: TRUE | I36: TRUE | J36: TRUE | K36: TRUE | L36: TRUE | M36: TRUE | N36: TRUE | O36: TRUE | P36: FALSE | Q36: FALSE | R36: TRUE
U89: =52+6 -> 58
